Cogmind - Beta 14 @@@ ROGUE MODE // 2024.12.20 @ 20:03:43 Player: Cog on my mind Result: Destroyed by as-20690 with Assembled F-torch Performance ------------- Evolutions (0) 0 Regions Visited (4) 800 Robots Destroyed (45) 225 Value Destroyed (606) 606 Prototype IDs (28) 560 Alien Tech Used (0) 0 Bonus (300) 300 TOTAL SCORE: 2491 Bonus ------- Aligned with FarCom 300 Cogmind --------- Core Integrity 0/250 Matter 260/300 Energy 150/160 System Corruption 0% Temperature Cool (68) Movement Rolling (95) Ox1 Location -9/Mines Parts ------- > --- POWER (1) -------- Light Nuclear Core > --- PROPULSION (2) --- Wheel > --- UTILITY (2) ------ Medium Storage Unit Hacking Suite > --- WEAPON (2) ------- Longsword +1 > --- INVENTORY (10) --- Hover Unit Large Storage Unit High-capacity Matter Pod (200) Structural Scanner Signal Interpreter Seismic Detector Assault Rifle Mining Laser Heavy Hammer Peak State ------------ > --- POWER ------------ Light Nuclear Core > --- PROPULSION ------- Wheel Wheel > --- UTILITY ---------- Medium Storage Unit Hacking Suite > --- WEAPON ----------- Heavy Hammer Longsword +1 > --- INVENTORY -------- Hover Unit Large Storage Unit High-capacity Matter Pod Structural Scanner Signal Interpreter Seismic Detector Assault Rifle Grenade Launcher Mining Laser [Rating: 19] Favorites ----------- Power Light Ion Engine Engine Light Ion Engine Power Core Light Nuclear Core Propulsion Wheel Wheel Wheel Hover Unit Hover Unit Utility Hacking Suite Device Seismic Detector Storage Medium Storage Unit Hackware Hacking Suite Weapon Assault Rifle Energy Gun Small Laser Energy Cannon Beam Cannon Ballistic Gun Assault Rifle Launcher Grenade Launcher Special Weapon Mining Laser Impact Weapon Heavy Hammer Slashing Weapon Longsword +1 Build | -11 -10 -10 -10 -9 ------- Run | Yrd Mat Min Exi Min Slots Evolved . | . . . . . Power . | . . . . . Propulsion . | . . . . . Utility . | . . . . . Weapon . | . . . . . Parts Attached 32 | 8 16 2 1 5 Power 4 | 1 2 1 . . Engine 3 | 1 2 . . . Core 1 | . . 1 . . Reactor . | . . . . . Propulsion 11 | 3 6 1 . 1 Treads . | . . . . . Leg . | . . . . . Wheel 10 | 3 5 1 . 1 Hover 1 | . 1 . . . Flight . | . . . . . Utility 3 | 1 2 . . . Device 1 | 1 . . . . Storage 1 | . 1 . . . Processor . | . . . . . Hackware 1 | . 1 . . . Protection . | . . . . . Artifact . | . . . . . Weapon 14 | 3 6 . 1 4 Energy Gun 2 | 2 . . . . Energy Cannon 1 | . 1 . . . Ballistic Gun 6 | 1 5 . . . Ballistic Cannon . | . . . . . Launcher 2 | . . . . 2 Special Weapon 1 | . . . . 1 Impact Weapon 1 | . . . . 1 Slashing Weapon 1 | . . . 1 . Piercing Weapon . | . . . . . Special Melee Weapon . | . . . . . Unidentified Prototypes . | . . . . . Parts Lost 7 | . 2 2 . 3 Power 2 | . 1 1 . . Propulsion 4 | . 1 1 . 2 Utility . | . . . . . Weapon 1 | . . . . 1 Highest Loss Streak 2 | . 1 1 . 2 To Critical Strikes . | . . . . . Average Slot Usage (%) 97 | . 97 97 99 94 Engine 9 | . 13 11 . . Core 4 | . . 2 14 14 Wheel 27 | . 27 25 28 23 Device 2 | . 4 . . . Storage 11 | . 9 14 14 14 Hackware 12 | . 11 14 14 14 Energy Gun 4 | . 7 . . . Energy Cannon 1 | . 3 . . . Ballistic Gun 17 | . 16 28 18 . Slashing Weapon 3 | . . . 9 14 Peak Build Rating 19 | 6 9 11 18 19 Average Rating 10 | 4 8 9 15 18 On Entrance 8 | . 6 9 11 18 Naked Turns . | . . . . . Heaviest Build 21 | 7 19 19 20 21 Greatest Support 26 | 20 26 26 26 20 Greatest Overweight (x) 2 | . 1 1 . 2 Average Overweight (x) . | . . . . 1 Largest Inventory Capacity 10 | 5 10 10 10 10 Average Capacity 8 | 5 8 10 10 10 Most Carried 10 | 2 9 10 10 10 Average Carried 6 | . 5 9 8 8 Final Capacity 10 | 5 10 10 10 10 Final Carried 9 | . 9 9 8 9 Class Distribution -------------------- 79% | Scavenger-Mutant 20% | Mutant Dominant Class ---------------- Scavenger-Mutant | -10/Materials Scavenger-Mutant | -10/Mines Scavenger-Mutant | -10/Exiles Scavenger-Mutant | -9/Mines Resources | -11 -10 -10 -10 -9 ----------- Run | Yrd Mat Min Exi Min Matter Collected 1158 | 309 604 190 20 35 Remotely . | . . . . . Salvage Created 1121 | 89 715 233 . 84 Parts 88 | 7 52 15 . 14 Haulers Intercepted 2 | . 2 . . . Recyclers Shooed 1 | . 1 . . . Parts Field Recycled . | . . . . . Retrieved Matter . | . . . . . Parts Self-Destructed . | . . . . . Prevented . | . . . . . Kills | -11 -10 -10 -10 -9 ------- Run | Yrd Mat Min Exi Min Combat Hostiles Destroyed 32 | 1 15 8 . 8 Guns 19 | 1 10 8 . . Cannons 5 | . 5 . . . AOE 8 | . . . . 8 Classes Destroyed 10 | 3 6 . . 1 Worker 5 | 1 4 . . . Builder 1 | . 1 . . . Tunneler 3 | 1 . . . 2 Hauler 2 | . 2 . . . Recycler 2 | . 1 1 . . Operator 1 | . 1 . . . Watcher 3 | . 3 . . . Swarmer 20 | . 10 6 . 4 Grunt 8 | 1 5 2 . . Assembled 4 | . . . . 4 Best Kill Streak 6 | 1 6 3 . 5 Combat Bots Only 6 | 1 6 3 . 4 Max Kills in Single Turn 3 | 1 1 1 . 3 Gunslinging . | . . . . . Exploded 3 | . . . . 3 Melee . | . . . . . Uniques/NPCs Destroyed . | . . . . . Combat | -11 -10 -10 -10 -9 -------- Run | Yrd Mat Min Exi Min Hostile Shots Fired 132 | 9 68 41 . 14 Missed 32 | 3 16 8 . 5 Damage Taken 1031 | 64 445 359 . 163 Core 258 | 10 88 121 . 39 Absorbed by Shields . | . . . . . Core Remaining (%) 96 | 96 . . . . Volleys Fired 131 | 11 91 25 . 4 Largest 2 | 2 2 2 . 1 Hottest 80 | 60 80 40 . 30 Shots Fired 258 | 22 182 50 . 4 Gun 228 | 22 156 50 . . Cannon 26 | . 26 . . . Launcher 4 | . . . . 4 Special . | . . . . . Kinetic 161 | 11 100 50 . . Thermal 84 | 2 82 . . . Explosive 4 | . . . . 4 Electromagnetic 9 | 9 . . . . Robot Hit Streak 16 | 8 9 16 . . Robot Miss Streak 6 | 6 5 3 . 2 Penetration Max . | . . . . . Secondary Targets 2 | . . 2 . . Max Gunslinging Chain 1 | . . 1 . . Shots Hit Robots 151 | 12 100 36 . 3 Core Hits 72 | 4 39 12 . 17 Critical Kills 1 | . 1 . . . Critical Parts Destroyed . | . . . . . Critical Strikes 1 | . 1 . . . Destroy 1 | . 1 . . . Melee Attacks 3 | . . . . 3 Impact . | . . . . . Slashing 3 | . . . . 3 Piercing . | . . . . . Sneak Attacks 2 | . . . . 2 Combat Hostiles . | . . . . . Follow-up Attacks . | . . . . . Damage Inflicted 2539 | 151 1241 450 . 697 Guns 1615 | 151 1014 450 . . Cannons 227 | . 227 . . . Explosions 494 | . . . . 494 Melee 203 | . . . . 203 Ramming . | . . . . . Kinetic 1182 | 51 681 450 . . Thermal 581 | 21 560 . . . Explosive 494 | . . . . 494 Electromagnetic 79 | 79 . . . . Impact . | . . . . . Slashing 203 | . . . . 203 Piercing . | . . . . . Highest Corruption . | . . . . . Average Corruption . | . . . . . Corruption Purged . | . . . . . Corruption Blocked . | . . . . . Overload Shots . | . . . . . Overflow Damage 17 | . 13 . . 4 Projectiles 13 | . 13 . . . Explosions 4 | . . . . 4 Melee . | . . . . . Knockbacks . | . . . . . Impact . | . . . . . Kinetic . | . . . . . Secondary . | . . . . . Self-Inflicted Damage 55 | . . . . 55 Shots 3 | . . . . 3 Rammed . | . . . . . Targets Rammed . | . . . . . Kicked . | . . . . . Crushed . | . . . . . Highest Temperature 220 | 36 220 20 . 51 Average Temperature 56 | 24 67 6 . 37 Received Heat Transfer 332 | 36 66 150 . 80 Siege Activations . | . . . . . Robots Corrupted . | . . . . . Combat Hostiles . | . . . . . Parts Fried . | . . . . . Impact Corruptions . | . . . . . Robots Melted . | . . . . . Combat Hostiles . | . . . . . Parts Melted 1 | . 1 . . . Heat Transferred 1281 | 50 1231 . . . Parts Sabotaged . | . . . . . Parts Stolen . | . . . . . Parts Stripped . | . . . . . Power Chain Reactions . | . . . . . Alert | -11 -10 -10 -10 -9 ------- Run | Yrd Mat Min Exi Min Peak Influence 358 | 30 358 286 . 142 Initial 96 | . 19 96 . . Average 165 | 12 179 221 . 99 Maximum Alert Level 1 | . 1 1 . . Low Security (%) 60 | 100 55 40 . 100 Level 1 39 | . 44 59 . . Level 2 . | . . . . . Level 3 . | . . . . . Level 4 . | . . . . . Level 5 . | . . . . . High Security . | . . . . . Max Security . | . . . . . Squads Dispatched 2 | . 2 . . . Investigation . | . . . . . Extermination . | . . . . . Reinforcement 2 | . 2 . . . Assault . | . . . . . Garrison . | . . . . . Intercept . | . . . . . Searches Triggered . | . . . . . Construction Impeded . | . . . . . Haulers Reinforced . | . . . . . Active Scanning Responses . | . . . . . Cargo Convoy Interrupts . | . . . . . Stealth | -11 -10 -10 -10 -9 --------- Run | Yrd Mat Min Exi Min Distress Signals 2 | . 2 . . . Communications Jammed . | . . . . . Distress Signals . | . . . . . Times Spotted 45 | 1 20 8 . 16 Peak Tracking Total 11 | 1 4 3 . 11 Tactical Retreats 3 | . 3 . . . Traps | -11 -10 -10 -10 -9 ------- Run | Yrd Mat Min Exi Min Traps Triggered . | . . . . . Indirectly . | . . . . . Trap Hack Attempts . | . . . . . Triggered . | . . . . . Disarmed . | . . . . . Reprogrammed . | . . . . . Reused . | . . . . . Traps Extracted . | . . . . . Installed . | . . . . . Triggered . | . . . . . Machines | -11 -10 -10 -10 -9 ---------- Run | Yrd Mat Min Exi Min Machines Disabled 1 | . . . . 1 Max in Single Turn 1 | . . . . 1 Machines Repaired . | . . . . . Machines Dismantled . | . . . . . Machines Sabotaged . | . . . . . Overloaded Fab Kills . | . . . . . Hacking | -11 -10 -10 -10 -9 --------- Run | Yrd Mat Min Exi Min Machines Accessed 12 | . 7 . 5 . Terminals 6 | . 6 . . . Fabricators . | . . . . . Repair Stations . | . . . . . Recycling Units 1 | . 1 . . . Scanalyzers . | . . . . . Garrison Access . | . . . . . Total Hacks 74 | . 24 . 50 . Successful 66 | . 16 . 50 . Failed 6 | . 6 . . . Catastrophic 1 | . 1 . . . Database Lockouts 2 | . 2 . . . Manual 11 | . 10 . 1 . Terminals 23 | . 23 . . . Fabricators . | . . . . . Repair Stations . | . . . . . Recycling Units 1 | . 1 . . . Scanalyzers . | . . . . . Garrison Access . | . . . . . Terminal Hacks 63 | . 13 . 50 . Record 53 | . 4 . 49 . Prototype ID Bank 3 | . 3 . . . Branch Access Points 1 | . 1 . . . Terminal Index 1 | . 1 . . . Alert Level 1 | . 1 . . . Locate Traps 2 | . 2 . . . Hauler Manifests 1 | . 1 . . . Derelict Proto ID Bank 1 | . . . 1 . Fabricator Hacks . | . . . . . Repair Station Hacks . | . . . . . Recycling Unit Hacks . | . . . . . Scanalyzer . | . . . . . Garrison Access Hacks . | . . . . . Unauthorized Hacks 3 | . 3 . . . Terminals 2 | . 2 . . . Botnet 2 | . 2 . . . Fabricators . | . . . . . Repair Stations . | . . . . . Recycling Units 1 | . 1 . . . Reject 1 | . 1 . . . Scanalyzers . | . . . . . Garrison Access . | . . . . . Data Cores Recovered . | . . . . . Used . | . . . . . Hacking Detections 7 | . 7 . . . Full Trace Events 1 | . 1 . . . Feedback Events . | . . . . . Feedback Blocked . | . . . . . Robot Schematics Acquired . | . . . . . Robots Built . | . . . . . Authchips . | . . . . . Time . | . . . . . Total Robot Build Rating . | . . . . . Part Schematics Acquired . | . . . . . Parts Built . | . . . . . Authchips . | . . . . . Time . | . . . . . Total Part Build Rating . | . . . . . Parts Repaired . | . . . . . Time . | . . . . . Parts Recycled . | . . . . . Recycled Matter . | . . . . . Retrieved Matter . | . . . . . Retrieved Components . | . . . . . Parts Scanalyzed . | . . . . . Part Schematics Acquired . | . . . . . Parts Damaged . | . . . . . Bothacking | -11 -10 -10 -10 -9 ------------ Run | Yrd Mat Min Exi Min Used RIF Installer . | . . . . . Robots Hacked . | . . . . . Non-combat . | . . . . . Combat . | . . . . . Robot Hacks Applied . | . . . . . Relay Couplers Released . | . . . . . Fabnet Peak Effective % . | . . . . . Robots Rewired . | . . . . . Allies Hacked . | . . . . . Hacks Repelled . | . . . . . Allies | -11 -10 -10 -10 -9 -------- Run | Yrd Mat Min Exi Min Total Allies . | . . . . . Largest Group . | . . . . . Highest-Rated Group . | . . . . . Highest-Rated Ally . | . . . . . Total Orders . | . . . . . Ally Attacks . | . . . . . Total Damage . | . . . . . Kills . | . . . . . Allies Corrupted . | . . . . . Allies Melted . | . . . . . Intel | -11 -10 -10 -10 -9 ------- Run | Yrd Mat Min Exi Min Robot Analysis Total . | . . . . . Derelict Logs Recovered 1 | . . . . 1 Drone Launches . | . . . . . Drone Recoveries . | . . . . . Exploration | -11 -10 -10 -10 -9 ------------- Run | Yrd Mat Min Exi Min Turns Passed 1985 | 120 1022 257 430 156 Spaces Moved 1674 | 92 791 184 472 135 Core 16 | 16 . . . . Treads . | . . . . . Legs . | . . . . . Wheels 1658 | 76 791 184 472 135 Hover . | . . . . . Flight . | . . . . . Fastest Speed 50 | 50 80 90 90 80 Average Speed 87 | 74 84 91 90 98 Slowest Speed 110 | 80 95 95 90 110 Overloaded Moves . | . . . . . Propulsion Burnouts . | . . . . . Robots Hopped . | . . . . . Cave-ins Triggered . | . . . . . Exploration Rate (%) 51 | 10 94 33 93 27 Regions Visited 4 Branch Regions 3 Pre-discovered Areas 2 | . . . 1 1 Known Exits Taken 1 | . 1 . . . Unknown Exits Taken 3 | 1 . 1 1 . Scrap Searched 1 | . . . . 1 Spaces Dug . | . . . . . Terrain Destroyed 24 | . . . . 24 Melee . | . . . . . Projectile . | . . . . . AOE 24 | . . . . 24 Terrain Rammed . | . . . . . Walls Destroyed . | . . . . . Machines Disabled . | . . . . . Actions | -11 -10 -10 -10 -9 --------- Run | Yrd Mat Min Exi Min Total 1940 | 120 967 223 478 152 Wait 48 | . 34 11 1 2 Move 1670 | 91 790 183 471 135 Hop . | . . . . . Pick Up 38 | 8 24 2 2 2 Fast Attach . | . . . . . Attach 15 | 6 4 2 1 2 Detach 1 | . . . . 1 Swap 17 | 2 12 . . 3 Drop 17 | 2 12 . 3 . Fire 131 | 11 91 25 . 4 Melee 3 | . . . . 3 Ram . | . . . . . Kick . | . . . . . Crush . | . . . . . Escape Stasis . | . . . . . Rewire . | . . . . . Trap . | . . . . . Miscellaneous . | . . . . . Route ------- -11/Scrapyard -10/Materials (discovered 5 exits: [*Mat x3] / *Min x2) -10/Mines (discovered 3 exits: [*Mat x2] / *Exi) -10/Exiles (discovered 2 exits: [*Min x2]) -9/Mines History --------- Turn | Location | Event 2 | -11/Scrapyard | Met Revision 17 46 | -11/Scrapyard | Discovered new exit (range 8) 121 | -11/Scrapyard | Entered Materials 217 | -10/Materials | Discovered new exit (range 11) 314 | -10/Materials | Discovered new exit (range 16) 584 | -10/Materials | Build established: Scavenger-Mutant 634 | -10/Materials | Identified exit to Mines 634 | -10/Materials | Central database locked down 868 | -10/Materials | Discovered new exit (range 9) 1060 | -10/Materials | Discovered new exit (range 8) 1063 | -10/Materials | Central database locked down 1143 | -10/Materials | Entered Mines 1201 | -10/Mines | Discovered new exit (range 3) 1255 | -10/Mines | Core integrity fell below 50% 1280 | -10/Mines | Deemed a non-threat by the Exiles lab entrance 1280 | -10/Mines | Discovered new exit (range 5) 1321 | -10/Mines | Discovered new exit (range 9) 1346 | -10/Mines | Core integrity fell below 20% 1400 | -10/Mines | Entered Exiles 1413 | -10/Exiles | Discovered new exit (range 15) 1426 | -10/Exiles | Met 8R-AWN 1441 | -10/Exiles | Met EX-HEX 1474 | -10/Exiles | Met EX-DEC 1492 | -10/Exiles | Met EX-BIN 1504 | -10/Exiles | Aligned with FarCom system 1505 | -10/Exiles | Given EX-Vault access code 1545 | -10/Exiles | Opened EX-Vault 1550 | -10/Exiles | Found Longsword +1 1570 | -10/Exiles | Warned to stay clear of 0b10 Research branches 1646 | -10/Exiles | Visited The Gauntlet 1758 | -10/Exiles | Learned location of Zion (-7) 1821 | -10/Exiles | Discovered new exit (range 12) 1830 | -10/Exiles | Left Exiles lab with Longsword +1 1830 | -10/Exiles | Entered Mines 1957 | -9/Mines | Assembled infested the area 1962 | -9/Mines | Assisted by a Guerilla fighting off Assembled 1986 | -9/Mines | Destroyed by as-20690 with Assembled F-torch Last Messages --------------- A derelict emerges from the shadows: "You need to get out of here! I've been tracking a group of Assembled to figure out where they're coming from, and they're closing on this area, come on!" K-01 Serf collects debris. K-01 Serf cleans the Laser Drill. KF-QOA(h): "I'll hold them off! Go on ahead or try to find another way!" HV Slug penetrates Wall. K-01 Serf collects debris. K-01 Serf destroyed. as-95809 destroyed. Laser Drill disabled. as-48928 destroyed. as-03438 destroyed. as-19116 destroyed. Grenade Launcher destroyed. Wheel destroyed. [Achievement: First Step to Greatness] Map ----- +----------------------------------------------------+ | # [ #????### ##?# #????????????????????????? | | # #????# ### ####?????????????????????? | | #### ###????# #?????????????????????? | | ???######?????# #?????????????????????? | | ??????????????## ##### #?????????????????????? | | ???????????????## ##???# #?????????????????????? | | ????????????????####????# #?????????????????????? | | ????????????????????????# #?????????????????????? | | ????????????????????????# #?????????????????????? | | ????????????????????????# #?????????????????????? | | ????????????????????????#r ##????????????????????? | | ????????????????????????# ##???????????????????? | | ????????????????#####???#u ##??????????????????? | | ???????????????## ####u ##?????????????????? | | ???????????????# ;# #########?????????? | | ???????????????# #?????????? | | ???????????????# ####### #?????????? | | ???????????? ##?????# ##########? | | ??????????? ## % #??????# ## #? | | ???????????? ###???# a ######## ## ##### #? | | ????????????????????# % #?### #? | | ?????????????????????# a ################# ## | | ?????????????????????# a ##?????????????## # | | ????????????????????## a #??????????????# # | | ????????????????????# a #???##?????????# ## | | ????????????????????# "@ ### ##????????##%! #? | | ????????????????????# ""a #?????????##[ ##? | | ???????????????????##a"""% #??????????####?? | | ??????????????????## #???????????????? | | ??????????????????# ## #???????????????? | | ??????????????????# #### ##???????????????? | | ??????????????????# #???####????????????????? | | ?????????????????# ##???????????????????????? | | ????????????????# ##?????????????????????????? | | ???????????????# #???????????????????????????? | | ?????????????? #????????????????????????????? | | ???????????? #?????????????????????????????? | | ???????????? ??????????????????????????????? | | ???????????? ## ???????????????????????????????? | | ???????????????##????????????????????????????????? | | ?????????????????????????????????????????????????? | | ?????????????????????????????????????????????????? | | ?????????????????????????????????????????????????? | | ?????????????????????????????????????????????????? | | ?????????????????????????????????????????????????? | | ?????????????????????????????????????????????????? | | ?????????????????????????????????????????????????? | | ?????????????????????????????????????????????????? | | ?????????????????????????????????????????????????? | | ?????????????????????????????????????????????????? | +----------------------------------------------------+ Best States ------------- Heat Dissipation 25 Energy Generation 14 Energy Capacity 250 Matter Stores 300 Matter Capacity 300 Sight Range 16 Terrain Scan Density 10 Evasion (%) 50 Offensive Hacking 10 Item Schematics ----------------- None Robot Schematics ------------------ None Fabricated ------------ Nothing Alien Tech Used ----------------- None Achievements -------------- Crack Shot First Step to Greatness Librarian Loot Pinata Storm Trooper Tourist True Hacker Uninvited Guest Challenges ------------ None Game ------ Seed PrecisionOpticalCalibrator Manual? 0 Play Time 00:31:10 Cumulative 0.5 hours Start 2024.12.20 @ 19:30:30 End 2024.12.20 @ 20:03:43 Sessions 1 Manual Loads 0 Difficulty Rogue Special Mode None Game No. 1 Rogue 1 Adventurer 0 Explorer 0 Win Type - Total 0 Types 0/0/0/0/0/0/0/0/0 Lore% 5 Gallery% 1 Achievement% 3 Wizard Run 0 Options --------- Layout 1 ASCII 0 Keyboard 0 Movement Mouse Keybinds 0 Fullscreen 1 Font 24/Smallcaps Map View 50x35 Zoom Use 0% Tactical HUD 0 Map Filters NONE Filters NONE Steam 1 RUN: 1db91acf-48dc-437c-8079-3b51b26f681d